Cogmind - Beta 9.1 @@@ ROGUE MODE // 2019.10.31 @ 20:41:38 // Halloween2019/Abominations Player: fartblaster Result: Destroyed by G-34 Mercenary with Small Laser Performance ------------- Evolutions (0) 0 Regions Visited (1) 200 Robots Destroyed (9) 45 Value Destroyed (308) 308 Prototype IDs (0) 0 Alien Tech Used (0) 0 Bonus (0) 0 TOTAL SCORE: 553 Bonus ------- None Cogmind --------- Core Integrity 0/250 Matter 290/300 Energy 100/100 System Corruption 0% Temperature Cool (6) Location -10/Materials Parts ------- Power (1) Propulsion (2) Utility (2) Large Storage Unit Core Shielding Weapon (2) Inventory (10) Ion Engine Light Ion Engine Small Storage Unit Medium Storage Unit Peak State ------------ Power Ion Engine Propulsion Light Treads Light Treads Utility Small Storage Unit Medium Storage Unit Weapon Small Laser Assault Rifle Inventory Light Ion Engine [Rating: 7] Favorites ----------- Power Ion Engine Engine Ion Engine Power Core Light Nuclear Core Propulsion Light Treads Treads Light Treads Utility Large Storage Unit Storage Large Storage Unit Protection Core Shielding Weapon Assault Rifle Energy Gun Small Laser Ballistic Gun Assault Rifle Build | -11 -10 ------- Run | Scr Mat Slots Evolved . | . . Power . | . . Propulsion . | . . Utility . | . . Weapon . | . . Parts Attached 10 | 6 4 Power 2 | 1 1 Engine 1 | 1 . Core 1 | . 1 Reactor . | . . Propulsion 2 | 2 . Treads 2 | 2 . Leg . | . . Wheel . | . . Hover . | . . Flight . | . . Utility 4 | 1 3 Device . | . . Storage 3 | 1 2 Processor . | . . Hackware . | . . Protection 1 | . 1 Artifact . | . . Weapon 2 | 2 . Energy Gun 1 | 1 . Energy Cannon . | . . Ballistic Gun 1 | 1 . Ballistic Cannon . | . . Launcher . | . . Special Weapon . | . . Impact Weapon . | . . Slashing Weapon . | . . Piercing Weapon . | . . Special Melee Weapon . | . . Unidentified Prototypes . | . . Parts Lost 5 | . 5 Power 1 | . 1 Propulsion 2 | . 2 Utility . | . . Weapon 2 | . 2 Highest Loss Streak 3 | . 3 Average Slot Usage (%) 62 | . 62 Engine 7 | . 7 Core 3 | . 3 Treads 19 | . 19 Storage 14 | . 14 Protection 2 | . 2 Energy Gun 4 | . 4 Ballistic Gun 10 | . 10 Naked Turns . | . . Heaviest Build 24 | 12 24 Greatest Support 40 | 40 40 Greatest Overweight (x) 5 | . 5 Average Overweight (x) . | . 1 Largest Inventory Capacity 14 | 6 14 Average Capacity 8 | 5 9 Most Carried 5 | 1 5 Average Carried 2 | . 3 Final Capacity 10 | 6 10 Final Carried 4 | 1 4 Class Distribution -------------------- 100% | Mutant Dominant Class ---------------- Mutant | -10/Materials Resources | -11 -10 ----------- Run | Scr Mat Matter Collected 400 | 186 214 Remotely . | . . Salvage Created 351 | . 351 Parts 17 | . 17 Haulers Intercepted . | . . Recyclers Shooed . | . . Parts Field Recycled . | . . Retrieved Matter . | . . Parts Self-Destructed . | . . Prevented . | . . Kills | -11 -10 ------- Run | Scr Mat Combat Hostiles Destroyed 9 | . 9 Guns 9 | . 9 Classes Destroyed 2 | . 2 Swarmer 1 | . 1 Grunt 8 | . 8 Best Kill Streak 3 | . 3 Combat Bots Only 3 | . 3 Max Kills in Single Turn 1 | . 1 Gunslinging . | . . Exploded . | . . Melee . | . . Uniques/NPCs Destroyed . | . . Combat | -11 -10 -------- Run | Scr Mat Damage Taken 837 | . 837 Core 251 | . 251 Absorbed by Shields . | . . Core Remaining (%) 100 | 100 . Volleys Fired 44 | . 44 Largest 1 | . 1 Hottest 20 | . 20 Shots Fired 44 | . 44 Gun 44 | . 44 Cannon . | . . Launcher . | . . Special . | . . Kinetic 44 | . 44 Thermal . | . . Explosive . | . . Electromagnetic . | . . Robot Hit Streak 6 | . 6 Robot Miss Streak 2 | . 2 Penetration Max . | . . Secondary Targets . | . . Shots Hit Robots 32 | . 32 Core Hits 15 | . 15 Critical Hits . | . . Critical Kills . | . . Critical Parts Destroyed . | . . Melee Attacks . | . . Impact . | . . Slashing . | . . Piercing . | . . Sneak Attacks . | . . Combat Hostiles . | . . Follow-up Attacks . | . . Damage Inflicted 435 | . 435 Guns 435 | . 435 Cannons . | . . Explosions . | . . Melee . | . . Ramming . | . . Kinetic 435 | . 435 Thermal . | . . Explosive . | . . Electromagnetic . | . . Impact . | . . Slashing . | . . Piercing . | . . Highest Corruption . | . . Average Corruption . | . . Corruption Purged . | . . Overload Shots . | . . Overflow Damage . | . . Projectiles . | . . Explosions . | . . Melee . | . . Knockbacks . | . . Impact . | . . Kinetic . | . . Secondary . | . . Self-Inflicted Damage . | . . Shots . | . . Rammed . | . . Targets Rammed . | . . Kicked . | . . Crushed . | . . Highest Temperature 8 | . 8 Average Temperature 2 | . 2 Received Heat Transfer 444 | . 444 Siege Activations . | . . Robots Corrupted . | . . Combat Hostiles . | . . Parts Fried . | . . Impact Corruptions . | . . Robots Melted . | . . Combat Hostiles . | . . Parts Melted . | . . Heat Transferred . | . . Parts Sabotaged . | . . Parts Stolen . | . . Parts Stripped . | . . Power Chain Reactions . | . . Missiles Intercepted . | . . Alert | -11 -10 ------- Run | Scr Mat Peak Influence 230 | . 230 Average Influence 95 | . 130 Maximum Alert Level 1 | . 1 Low Security (%) 71 | . . Level 1 28 | . . Level 2 . | . . Level 3 . | . . Level 4 . | . . Level 5 . | . . High Security . | . . Max Security . | . . Squads Dispatched 2 | . 2 Investigation 2 | . 2 Extermination . | . . Reinforcement . | . . Assault . | . . Garrison . | . . Intercept . | . . Construction Impeded . | . . Haulers Reinforced . | . . Stealth | -11 -10 --------- Run | Scr Mat Distress Signals 1 | . 1 Communications Jammed . | . . Distress Signals . | . . Times Spotted 12 | . 12 Peak Tracking Total 5 | . 5 Tactical Retreats . | . . Traps | -11 -10 ------- Run | Scr Mat Traps Triggered 1 | . 1 Indirectly . | . . Trap Hack Attempts . | . . Triggered . | . . Disarmed . | . . Reprogrammed . | . . Reused . | . . Traps Extracted . | . . Installed . | . . Triggered . | . . Machines | -11 -10 ---------- Run | Scr Mat Machines Disabled . | . . Max in Single Turn . | . . Machines Sabotaged . | . . Garrisons Compromised . | . . Overloaded Fab Kills . | . . Fab Network Shutdowns . | . . Hacking | -11 -10 --------- Run | Scr Mat Machines Accessed . | . . Terminals . | . . Fabricators . | . . Repair Stations . | . . Recycling Units . | . . Scanalyzers . | . . Garrison Access . | . . Total Hacks . | . . Successful . | . . Failed . | . . Catastrophic . | . . Database Lockouts . | . . Manual . | . . Terminals . | . . Fabricators . | . . Repair Stations . | . . Recycling Units . | . . Scanalyzers . | . . Garrison Access . | . . Terminal Hacks . | . . Fabricator Hacks . | . . Repair Station Hacks . | . . Recycling Unit Hacks . | . . Scanalyzer . | . . Garrison Access Hacks . | . . Unauthorized Hacks . | . . Terminals . | . . Fabricators . | . . Repair Stations . | . . Recycling Units . | . . Scanalyzers . | . . Garrison Access . | . . Data Cores Recovered . | . . Used . | . . Hacking Detections . | . . Full Trace Events . | . . Feedback Events . | . . Feedback Blocked . | . . Robot Schematics Acquired . | . . Robots Built . | . . Matter . | . . Time . | . . Total Robot Build Rating . | . . Part Schematics Acquired . | . . Parts Built . | . . Matter . | . . Time . | . . Total Part Build Rating . | . . Parts Repaired . | . . Time . | . . Parts Recycled . | . . Recycled Matter . | . . Retrieved Matter . | . . Retrieved Components . | . . Parts Scanalyzed . | . . Part Schematics Acquired . | . . Parts Damaged . | . . Bothacking | -11 -10 ------------ Run | Scr Mat Used RIF Installer . | . . Robots Hacked . | . . Non-combat . | . . Combat . | . . Robot Hacks Applied . | . . Relay Couplers Released . | . . Robots Rewired . | . . Allies Hacked . | . . Hacks Repelled . | . . Allies | -11 -10 -------- Run | Scr Mat Total Allies . | . . Largest Group . | . . Highest-Rated Group . | . . Highest-Rated Ally . | . . Total Orders . | . . Ally Attacks . | . . Total Damage . | . . Kills . | . . Allies Corrupted . | . . Allies Melted . | . . Intel | -11 -10 ------- Run | Scr Mat Robot Analysis Total . | . . Derelict Logs Recovered . | . . Drone Launches . | . . Drone Recoveries . | . . Exploration | -11 -10 ------------- Run | Scr Mat Turns Passed 465 | 125 340 Spaces Moved 199 | 72 127 Core 30 | 5 25 Treads 169 | 67 102 Legs . | . . Wheels . | . . Hover . | . . Flight . | . . Fastest Speed 50 | 50 160 Average Speed 177 | 152 191 Slowest Speed 300 | 160 300 Overloaded Moves . | . . Propulsion Burnouts . | . . Robots Hopped . | . . Cave-ins Triggered . | . . Exploration Rate (%) 16 | 6 26 Regions Visited 1 Branch Regions . Pre-discovered Areas . | . . Known Exits Taken . | . . Unknown Exits Taken 1 | 1 . Scrap Searched . | . . Spaces Dug . | . . Terrain Destroyed . | . . Melee . | . . Projectile . | . . AOE . | . . Actions | -11 -10 --------- Run | Scr Mat Total 266 | 85 181 Wait 6 | 6 . Move 198 | 71 127 Hop . | . . Pick Up 5 | 2 3 Fast Attach 6 | 5 1 Attach 4 | 1 3 Detach 3 | . 3 Swap . | . . Drop . | . . Fire 44 | . 44 Melee . | . . Ram . | . . Kick . | . . Crush . | . . Escape Stasis . | . . Rewire . | . . Trap . | . . Miscellaneous . | . . Route ------- -11/Scrapyard -10/Materials History --------- Turn | Location | Event 64 | -11/Scrapyard | Discovered new exit (range 16) 126 | -11/Scrapyard | Entered Materials 314 | -10/Materials | Build established: Mutant 412 | -10/Materials | Core integrity fell below 50% 420 | -10/Materials | Lost 3 parts (1p1n1w) 449 | -10/Materials | Core integrity fell below 20% 466 | -10/Materials | Destroyed by G-34 Mercenary with Small Laser Last Messages --------------- 00336_ Acquired 3 matter. 00340_ K-01 Serf collects debris. 00346_ Triggered Alarm Trap. 00346_ An alarm sounds. 00346_ ALERT: Alarm triggered, dispatching investigation squad. 00347_ K-01 Serf collects debris. 00356_ U-05 Engineer builds a Wall. 00357_ K-01 Serf collects debris. 00360_ R-06 Scavenger collects Imp. Heat Sink. 00362_ K-01 Serf collects debris. 00372_ G-34 Mercenary destroyed. 00372_ K-01 Serf collects debris. 00374_ Assault Rifle destroyed. 00376_ K-01 Serf collects debris. 00378_ R-06 Scavenger collects Aluminum Leg. 00379_ K-01 Serf collects debris. 00382_ K-01 Serf cleans the Material Processor. 00385_ Lgt. Nuclear Core destroyed. 00389_ Lgt. Treads destroyed. 00407_ Acquired Core Shielding. Map ----- +----------------------------------------------------+ | ?????????????????????????????????????????????????? | | ?????????????????????????????????????????????????? | | ?????????????????????????????????????????????????? | | ?????????????????????????????????????????????????? | | ?????????????????????????????????????????????????? | | ?????????????????????????????????????????????????? | | ?????????????????????????????????????????????????? | | ?????????????????????????????????????????????????? | | ?????????????????????????????????????????????????? | | ?????????????????????????????????????????????????? | | ?????????????????????????????????????????????????? | | ???????????????##????????????????????????????????? | | ?????????????? ???????????????????????????????? | | ?????????????? ??????????????????????????????? | | ?????????????? ????????########?????????????? | | ???????????? ######### #?????????????? | | ????????????? # #?????????????? | | ?????????????? # " " #?????????????? | | ?????????????"" """ # "T" #?????????????? | | ?????????????""" """"" + """ #?????????????? | | ????????????"""" """"" w# #?????????????? | | ???????? """"" """"" g########?????????????? | | ???????? """ """ #???????????????????? | | ??????? #???????????????????? | | ???????# #???????????????????? | | ???????# @####???????????????????? | | ??????????######## ####??????????????????????? | | ?????????????????# #?????????????????????????? | | ?????????????????# ##############"#"""#??????? | | ????????########## % ??????? | | ???????# + ??????? | | ?????# ###### ??????? | | ?????# #?#### =## ! ##########"""#?????? | | ###### #?#! !## % " ??????? | | # """ #?#! %# %%% ##????????????? | | # """ #?## ### == #?????????????? | | + """ #??#######" #?????????????? | | # #????????##"#+## #?????????????? | | #### # """ #???????? "# ##?????????????? | | #####+# """ #??????? """"" "" #??????????????? | | # # """ #?????? """"" "" #??????????????? | | #""" # #?????# """"? "" #??????????????? | | #"Y #######?????# ???????"" #??????????????? | | #""" #???????????#?????????" #??????????????? | | # #?????????????????????????#??????????????? | | + #????????????????????????????????????????? | | # """ #????????????????????????????????????????? | | # """ #????????????????????????????????????????? | | # """ #????????????????????????????????????????? | | ### """ #????????????????????????????????????????? | +----------------------------------------------------+ Best States ------------- Heat Dissipation 25 Energy Generation 14 Energy Capacity 250 Matter Stores 300 Matter Capacity 300 Sight Range 16 Terrain Scan Density 10 Core Shielding 20 Evasion (%) 40 Recoil Reduction 2 Item Schematics ----------------- None Robot Schematics ------------------ None Fabricated ------------ Nothing Alien Tech Used ----------------- None Achievements -------------- None Challenges ------------ None Game ------ Seed DirtyCryofiberSheargun Manual? 0 Play Time 00:10:09 Cumulative 4.5 hours Start 2019.10.31 @ 20:34:19 End 2019.10.31 @ 20:41:38 Sessions 1 Manual Loads 0 Difficulty Rogue Special Mode Halloween2019/Abominations Game No. 17 Rogue 17 Adventurer 0 Explorer 0 Win Type - Total 0 Types 0/0/0/0/0/0/0 Lore% 1 Gallery% 10 Achievement% 5 Wizard Run 0 Options --------- ASCII 0 Keyboard 1 Movement Numpad Keybinds 0 Fullscreen 1 Font 18/SmallcapsGlow Map View 76x50 Tactical HUD 1 Map Filters NONE Filters NONE Steam 1 RUN: adb89b3e-b700-4d39-b756-9aa6cbca7d50